bitfinex-derivatives/quotes_ETHF0:USTF0_20230702
["timestamp","ask_amount","ask_price","bid_price","bid_amount"]
[1688279518137,3.12923,1915.5,1915.4,1.88821075]
[1688279521634,4.06914642,1915.5,1915.4,1.88821075]
[1688279522143,4.06914642,1915.5,1915.4,1.70714529]
[1688279522440,4.06914642,1915.5,1915.4,1.88821075]
[1688279522633,3.74891642,1915.5,1915.4,1.88821075]
[1688279522934,2.809,1915.5,1915.4,5.09601075]
[1688279523337,3.12223,1915.5,1915.4,5.09601075]
[1688279532840,2.9291365,1915.5,1915.4,5.09601075]
[1688279536450,2.816,1915.8,1915.6,0.31321]
[1688279536750,2.816,1915.8,1915.7,3.82102916]
[1688279537136,2.816,1915.8,1915.7,4.38851328]
[1688279537344,2.816,1915.8,1915.7,9.42966044]
[1688279539148,3.12918,1915.8,1915.7,9.42966044]
[1688279540046,3.41589635,1915.8,1915.7,8.68111086]
[1688279540349,3.41589635,1915.8,1915.7,3.64351086]
[1688279542454,3.41589635,1915.8,1915.7,3.82457632]
[1688279548957,3.41589635,1915.8,1915.7,4.2445617]
[1688279550358,3.41589635,1915.8,1915.7,4.06349624]
[1688279551555,3.41589635,1915.8,1915.7,4.2445617]
[1688279553167,3.41589635,1915.8,1915.7,4.06349624]
[1688279553872,3.41589635,1915.8,1915.7,4.2445617]
[1688279555566,3.12918,1915.8,1915.7,4.2445617]
[1688279556464,4.06901286,1915.8,1915.7,4.2445617]
[1688279567490,4.35572921,1915.8,1915.7,4.2445617]
[1688279568989,3.12918,1915.8,1915.7,4.2445617]
[1688279572496,3.41589635,1915.8,1915.7,4.2445617]
[1688279572696,4.35570031,1915.8,1915.7,4.06349624]
[1688279577389,4.35570031,1915.8,1915.7,4.2445617]
[1688279580700,4.35570031,1915.8,1915.7,4.06349624]
[1688279583296,4.35570031,1915.8,1915.7,0.54250624]
[1688279583297,7.17670031,1915.8,1915.7,0.54250624]
[1688279583500,13.33946371,1915.8,1915.7,0.73673254]
[1688279584090,13.33946371,1915.8,1915.7,0.85552177]
[1688279584295,13.33946371,1915.8,1915.7,0.92371295]
[1688279587001,13.33946371,1915.8,1915.7,0.50372757]
[1688279588402,13.33946371,1915.8,1915.7,0.50018041]
[1688279591411,7.17670031,1915.8,1915.7,0.50018041]
[1688279595507,7.17670031,1915.8,1915.7,0.3132]
[1688279597012,7.17670031,1915.8,1915.7,0.50186432]
[1688279597414,7.17670031,1915.8,1915.7,0.50541348]
[1688279602008,7.17670031,1915.8,1915.7,0.19221348]
[1688279603805,7.17670031,1915.8,1915.7,0.50541348]
[1688279618011,13.33946371,1915.8,1915.7,0.50541348]
[1688279618813,7.17670031,1915.8,1915.7,0.50541348]
[1688279619014,13.33946371,1915.8,1915.7,0.50541348]
[1688279619216,7.17670031,1915.8,1915.7,0.50541348]
[1688279620020,7.17670031,1915.8,1915.7,0.68647894]
[1688279621023,7.17670031,1915.8,1915.7,0.50541348]
[1688279622021,13.33946371,1915.8,1915.7,0.50541348]
[1688279632032,7.17670031,1915.8,1915.7,0.50541348]
[1688279633528,13.34371188,1915.8,1915.7,0.50541348]
[1688279635937,13.34371188,1915.8,1915.7,0.68647894]
[1688279636440,13.34371188,1915.8,1915.7,0.50541348]
[1688279638935,13.05699553,1915.8,1915.7,0.68647894]
[1688279639538,13.34371188,1915.8,1915.7,0.68647894]
[1688279641542,13.34371188,1915.8,1915.7,0.50541348]
[1688279667258,7.17670031,1915.8,1915.7,0.50541348]
[1688279667667,7.17670031,1915.8,1915.7,0.19221348]
[1688279667869,10.38450031,1915.8,1915.5,0.31323]
[1688279668162,0.31323,1915.5,1915.4,10.68939]
[1688279668355,4.35775031,1915.5,1915.4,10.68939]
[1688279668559,4.92523443,1915.5,1915.4,10.68939]
[1688279670572,4.92523443,1915.5,1915.4,11.10455406]
[1688279671474,4.92523443,1915.5,1915.4,11.10785856]
[1688279673272,3.98543047,1915.5,1915.4,11.10785856]
[1688279673978,3.41794635,1915.5,1915.4,11.10785856]
[1688279674181,3.13123,1915.5,1915.4,11.28892402]
[1688279674675,3.41794635,1915.5,1915.4,11.28892402]
[1688279675778,3.41794635,1915.5,1915.4,11.55800497]
[1688279676172,3.41794635,1915.5,1915.4,11.37693951]
[1688279677272,3.41794635,1915.5,1915.4,11.55800497]
[1688279678180,3.41794635,1915.5,1915.4,11.37693951]
[1688279679683,3.41794635,1915.5,1915.4,6.38313951]
[1688279683077,3.41794635,1915.5,1915.4,5.60004951]
[1688279683384,3.41794635,1915.5,1915.4,5.91329951]
[1688279684889,3.41794635,1915.5,1915.4,0.68754951]
[1688279685088,4.35775031,1915.5,1915.4,0.68754951]
[1688279685294,4.35775031,1915.5,1915.4,0.73171856]
[1688279685593,4.35775031,1915.5,1915.4,0.72841406]
[1688279685794,4.35775031,1915.5,1915.4,0.99800729]
[1688279686388,4.35775031,1915.5,1915.4,1.00131179]
[1688279689597,13.01775031,1915.5,1915.4,0.68806179]
[1688279689800,9.22748412,1915.4,1915.1,0.31329]
[1688279690003,5.64,1915.2,1915.1,0.31329]
[1688279690196,6.89308396,1915.2,1915.1,0.31329]
[1688279690394,6.52076412,1915.2,1915.1,0.00308359]
[1688279691801,16.12090731,1915.2,1915.1,0.00308359]
[1688279692097,16.12090731,1915.2,1915.0,5.27953228]
[1688279692300,12.36176412,1915.2,1915.1,0.00350409]
[1688279692491,16.11894819,1915.2,1915.0,0.00783228]
[1688279692691,3.13129,1915.1,1915.0,0.00783228]
[1688279692898,3.41800635,1915.1,1915.0,0.00783228]
[1688279693293,3.41800635,1915.1,1915.0,0.01081342]
[1688279695806,3.41800635,1915.1,1915.0,0.42615482]
[1688279696002,3.41800635,1915.1,1915.0,0.01081342]
[1688279697294,3.41800635,1915.1,1915.0,0.63210641]
[1688279704301,12.07800635,1915.1,1915.0,0.63210641]
[1688279719825,12.07800635,1915.1,1914.9,5.71135368]
[1688279720115,12.35980412,1915.0,1914.9,5.71135368]
[1688279720510,3.13232,1915.0,1914.9,9.10021914]
[1688279720917,3.13232,1915.0,1914.9,9.56677458]
[1688279723526,2.821,1915.2,1914.9,9.56677458]
[1688279723717,9.44321,1915.4,1915.1,3.2078]
[1688279723921,9.44321,1915.4,1915.2,0.49434546]
[1688279723922,0.78321,1915.4,1915.2,0.49434546]
[1688279724124,2.809,1915.3,1915.2,0.73144318]
[1688279724426,3.12227,1915.3,1915.2,1.2989273]
[1688279725327,0.35127,1915.3,1915.2,1.2989273]
[1688279725922,0.35127,1915.3,1915.2,1.06182958]
[1688279729535,0.63798635,1915.3,1915.2,0.88076412]
[1688279729837,0.63798635,1915.3,1915.2,0.31328]
[1688279730431,2.821,1915.2,1915.1,0.78321]
[1688279730635,6.51876412,1915.2,1915.0,5.1439]
[1688279730836,3.10471635,1915.1,1915.0,5.1439]
[1688279731022,3.41801635,1915.1,1915.0,5.1439]
[1688279732525,3.41801635,1915.1,1915.0,4.8306]
[1688279732729,3.41801635,1915.1,1915.0,5.14392]
[1688279733335,4.35821364,1915.1,1915.0,5.14392]
[1688279733531,4.35821364,1915.1,1915.0,5.47738924]
[1688279740337,13.01821364,1915.1,1915.0,0.33346924]
[1688279740538,13.01821364,1915.1,1914.9,0.73126368]
[1688279740740,3.75619729,1915.0,1914.9,0.73126368]
[1688279740935,4.63700141,1915.0,1914.9,0.31333]
[1688279741127,4.63700141,1915.0,1914.9,0.65218549]
[1688279745440,4.06951729,1915.0,1914.9,0.65218549]
[1688279745634,4.06951729,1915.0,1914.9,0.83325095]
[1688279745836,3.12932,1915.0,1914.9,0.83325095]
[1688279746240,3.12932,1915.0,1914.9,4.04105095]
[1688279749843,2.816,1915.0,1914.9,4.04105095]
[1688279750144,3.12932,1915.0,1914.9,4.04105095]
[1688279750345,2.816,1915.0,1914.9,4.04105095]
[1688279750845,3.12931,1915.0,1914.9,4.04105095]
[1688279762341,3.41602635,1915.0,1914.9,4.04105095]
[1688279762540,3.41602635,1915.0,1914.9,3.85998549]
[1688279762745,3.12931,1915.0,1914.9,4.04105095]
[1688279766151,2.816,1915.0,1914.9,4.04105095]
[1688279766350,2.809,1915.1,1914.9,4.04105095]
[1688279766550,2.809,1915.1,1915.0,0.56748412]
[1688279766758,2.809,1915.1,1915.0,0.88080412]
[1688279766954,2.809,1915.1,1915.0,1.22327025]
[1688279767551,3.1223,1915.1,1915.0,1.22327025]
[1688279768960,3.40901635,1915.1,1915.0,1.22327025]
[1688279769554,3.41601635,1915.1,1915.0,0.65578613]
[1688279770356,3.41601635,1915.1,1915.0,0.83685159]
[1688279770749,3.1293,1915.1,1915.0,0.83685159]
[1688279770950,3.41601635,1915.1,1915.0,0.83685159]
[1688279772261,4.35617615,1915.1,1915.0,0.83685159]
[1688279774563,4.0694598,1915.1,1915.0,0.83685159]
[1688279775460,3.41601635,1915.1,1915.0,0.83685159]
[1688279775656,4.3561605,1915.1,1915.0,0.83685159]
[1688279776555,4.3561605,1915.1,1915.0,0.65578613]
[1688279776761,4.3561605,1915.1,1915.0,0.83685159]
[1688279780560,4.3561605,1915.1,1915.0,1.25898707]
[1688279780955,4.06944415,1915.1,1915.0,1.25898707]
[1688279785270,4.3561605,1915.1,1915.0,1.25898707]
[1688279786680,4.06944415,1915.1,1915.0,1.25898707]
[1688279787671,4.3561605,1915.1,1915.0,1.25898707]
[1688279790675,4.3561605,1915.1,1915.0,1.07792161]
[1688279792168,1.5401605,1915.1,1915.0,1.25898707]
[1688279793373,1.25344415,1915.1,1915.0,1.25898707]
[1688279796481,1.5401605,1915.1,1915.0,1.25898707]
[1688279801989,1.25344415,1915.1,1915.0,1.25898707]
[1688279810994,1.5401605,1915.1,1915.0,1.25898707]
[1688279811894,1.5401605,1915.1,1915.0,1.07792161]
[1688279813095,1.5401605,1915.1,1915.0,1.25898707]
[1688279813298,1.25344415,1915.1,1915.0,1.25898707]
[1688279815500,1.5401605,1915.1,1915.0,1.25898707]
[1688279815691,1.5401605,1915.1,1915.0,4.46678707]
[1688279817902,1.25344415,1915.1,1915.0,4.46678707]
[1688279842025,1.5401605,1915.1,1915.0,4.46678707]
[1688279842914,1.5401605,1915.1,1915.0,4.28572161]
[1688279847025,1.5401605,1915.1,1915.0,4.46678707]
[1688279847226,1.25344415,1915.1,1915.0,4.46678707]
[1688279849816,1.5401605,1915.1,1915.0,4.46678707]
[1688279850834,1.5401605,1915.1,1915.0,4.28572161]
[1688279851124,4.4531605,1915.1,1915.0,0.76460161]
[1688279851331,4.4531605,1915.1,1914.8,3.52638501]
[1688279851524,1.6441605,1915.1,1915.0,0.35355347]
[1688279851725,5.02064462,1915.1,1914.8,3.52638501]
[1688279852026,3.13234,1914.9,1914.8,3.52638501]
[1688279852229,3.12934,1914.9,1914.8,3.52638501]
[1688279852431,3.98354047,1914.9,1914.8,3.52638501]
[1688279852934,3.98354047,1914.9,1914.8,3.93906566]
[1688279853535,3.98354047,1914.9,1914.8,4.11589602]
[1688279872047,3.98354047,1914.9,1914.8,4.29696148]
[1688279872650,3.98354047,1914.9,1914.8,4.11589602]
[1688279876053,3.98354047,1914.9,1914.8,0.90809602]
[1688279876350,3.98354047,1914.9,1914.8,4.11589602]
[1688279889759,3.41605635,1914.9,1914.8,4.11589602]
[1688279890770,3.41605635,1914.9,1914.8,4.29696148]
[1688279894074,4.35517852,1914.9,1914.8,4.29696148]
[1688279894768,4.35517852,1914.9,1914.8,4.11589602]
[1688279897373,4.35517852,1914.9,1914.8,4.29696148]
[1688279897770,4.35517852,1914.9,1914.8,4.11589602]
[1688279902969,4.35517852,1914.9,1914.8,4.29696148]
[1688279909782,4.35517852,1914.9,1914.8,4.11589602]
[1688279914089,4.06846217,1914.9,1914.8,4.11589602]
[1688279914289,4.06846217,1914.9,1914.8,4.29696148]
[1688279914493,3.12934,1914.9,1914.8,4.29696148]
[1688279918290,3.41605635,1914.9,1914.8,4.29696148]
[1688279918890,3.12934,1914.9,1914.8,4.29696148]
[1688279919094,4.54830568,1915.0,1914.8,4.29696148]
[1688279919298,3.60918351,1915.0,1914.8,4.29696148]
[1688279919497,3.60918351,1915.0,1914.9,0.56748412]
[1688279919697,3.60918351,1915.0,1914.9,1.07038117]
[1688279922303,0.79118351,1915.0,1914.9,1.07038117]
[1688279922489,1.07789986,1915.0,1914.9,1.07038117]
[1688279923799,3.89589986,1915.0,1914.9,0.18956705]
[1688279923999,3.99989986,1915.0,1914.9,0.23928572]
[1688279924296,4.93866335,1915.0,1914.8,3.21303501]
[1688279924492,3.69982412,1914.9,1914.8,3.21303501]
[1688279924902,4.63858761,1914.9,1914.8,3.21303501]
[1688279925300,4.63858761,1914.9,1914.8,3.45248738]
[1688279930201,4.63858761,1914.9,1914.8,3.76584738]
[1688279930711,4.63858761,1914.9,1914.8,3.94691284]
[1688279930909,4.07110349,1914.9,1914.8,3.94691284]
[1688279931402,4.07110349,1914.9,1914.8,3.76584738]
[1688279935115,4.07110349,1914.9,1914.8,3.94691284]
[1688279935817,4.07110349,1914.9,1914.8,3.76584738]
[1688279937213,4.07110349,1914.9,1914.8,0.24468738]
[1688279937415,4.17510349,1914.9,1914.8,0.24468738]
[1688279939019,4.07110349,1914.9,1914.8,0.55804738]
[1688279940225,4.07110349,1914.9,1914.8,0.73911284]
[1688279940923,4.07110349,1914.9,1914.8,0.55804738]
[1688279945718,4.07110349,1914.9,1914.8,0.24468738]
[1688279946027,4.07110349,1914.9,1914.8,0.55804738]
[1688279946723,4.07110349,1914.9,1914.8,0.24468738]
[1688279952636,4.07110349,1914.9,1914.8,0.22348326]
[1688279956236,4.07110349,1914.9,1914.6,8.67534629]
[1688279956527,3.13237,1914.7,1914.6,8.67534629]
[1688279960235,3.08965182,1914.7,1914.6,8.92712597]
[1688279960629,3.08965182,1914.7,1914.6,9.24051597]
[1688279960835,3.08965182,1914.7,1914.6,8.83296968]
[1688279961238,3.08965182,1914.7,1914.6,9.01403514]
[1688279970361,3.08965182,1914.7,1914.6,5.80623514]
[1688279970563,3.08965182,1914.7,1914.6,9.01403514]
[1688279975662,3.08965182,1914.7,1914.6,8.83296968]
[1688279977261,4.02888156,1914.7,1914.6,8.83296968]
[1688279978961,4.02888156,1914.7,1914.6,9.01403514]
[1688279980266,4.02888156,1914.7,1914.6,8.83296968]
[1688279981661,4.02888156,1914.7,1914.6,9.01403514]
[1688279984877,4.02888156,1914.7,1914.6,5.80623514]
[1688279985059,4.02888156,1914.7,1914.6,9.01403514]
[1688279986071,4.02888156,1914.7,1914.6,8.83296968]
[1688279986976,4.02888156,1914.7,1914.6,9.01403514]
[1688279989671,4.31559791,1914.7,1914.6,8.83296968]
[1688279990875,4.31559791,1914.7,1914.6,9.01403514]
[1688279993075,4.31559791,1914.7,1914.6,8.83296968]
[1688279994584,4.02888156,1914.7,1914.6,9.01403514]
[1688279999187,4.02888156,1914.7,1914.6,8.83296968]
[1688279999381,4.88308203,1914.7,1914.6,8.83296968]
[1688280000088,4.88308203,1914.7,1914.6,3.77296968]
[1688280000283,4.31559791,1914.7,1914.6,3.45957968]
[1688280005283,4.31559791,1914.7,1914.6,3.87221338]
[1688280005687,4.31559791,1914.7,1914.6,4.05327884]
[1688280005987,4.31559791,1914.7,1914.6,4.46773554]
[1688280006390,4.02888156,1914.7,1914.6,4.46773554]
[1688280006590,4.31559791,1914.7,1914.6,4.78112554]
[1688280006888,4.02888156,1914.7,1914.6,4.78112554]
[1688280008290,4.02888156,1914.7,1914.6,4.36849184]
[1688280008681,3.75822974,1914.7,1914.6,4.36849184]
[1688280008882,3.13237,1914.7,1914.6,4.36849184]
[1688280012087,0.31337,1914.7,1914.6,4.36849184]
[1688280020798,0.31337,1914.7,1914.6,7.18349184]
[1688280030310,0.60008635,1914.7,1914.6,7.00242638]
[1688280032204,0.60008635,1914.7,1914.6,4.18742638]
[1688280037510,0.60008635,1914.7,1914.6,4.36849184]
[1688280039611,0.31337,1914.7,1914.6,4.36849184]
[1688280040610,0.31337,1914.7,1914.6,3.97074]
[1688280050924,0.31337,1914.7,1914.6,6.79174]
[1688280061433,0.60008635,1914.7,1914.6,6.79174]
[1688280061739,0.60008635,1914.7,1914.6,6.61067454]
[1688280062338,0.60008635,1914.7,1914.6,6.79174]
[1688280064439,0.31337,1914.7,1914.6,6.79174]
[1688280069442,0.31337,1914.7,1914.6,3.58394]
[1688280069637,0.31337,1914.7,1914.6,6.79174]
[1688280106168,0.31337,1914.7,1914.6,3.58394]
[1688280106468,0.31337,1914.7,1914.6,6.79174]
[1688280115070,0.60008635,1914.7,1914.6,6.61067454]
[1688280115370,0.60008635,1914.7,1914.6,3.78967454]
[1688280120283,0.60008635,1914.7,1914.6,3.59963133]
[1688280120471,0.60008635,1914.7,1914.6,3.75228533]
[1688280128488,9.68365613,1914.7,1914.6,0.29728778]
[1688280128790,10.62288587,1914.7,1914.6,0.39454896]
[1688280128977,19.28288587,1914.7,1914.6,0.39454896]
[1688280131187,13.12131609,1914.7,1914.6,0.39454896]
[1688280135192,13.01731609,1914.7,1914.6,0.39454896]
[1688280135588,13.12131609,1914.7,1914.6,0.39454896]
[1688280135796,19.28288587,1914.7,1914.6,4.896e-05]
[1688280135995,13.12131609,1914.7,1914.6,0.43450007]
[1688280136793,13.12131609,1914.7,1914.6,0.26610007]
[1688280136986,19.2740087,1914.7,1914.6,0.35167792]
[1688280140397,19.69308069,1914.7,1914.6,0.35167792]
[1688280143199,19.58908069,1914.7,1914.6,0.35167792]
[1688280145198,13.43638808,1914.7,1914.6,0.35167792]
[1688280152108,13.42738808,1914.7,1914.6,0.35167792]
[1688280160323,16.63518808,1914.7,1914.6,0.35167792]
[1688280160721,22.78788069,1914.7,1914.6,0.35167792]
[1688280171033,23.48270297,1914.7,1914.6,0.35167792]
[1688280171532,11.481,1914.6,1914.4,10.1026]
[1688280171828,4.35735609,1914.5,1914.4,10.51523532]
[1688280176735,10.51230686,1914.5,1914.4,10.51523532]
[1688280179336,10.51230686,1914.5,1914.4,10.87862485]
[1688280188645,10.51230686,1914.5,1914.4,5.77092485]
[1688280198154,10.93531294,1914.5,1914.4,5.77092485]
[1688280204751,0.78314,1915.7,1914.6,5.222]
[1688280205051,6.85097494,1915.4,1915.3,3.12828]
[1688280205251,6.85097494,1915.4,1915.3,3.69576412]
[1688280205252,0.28671635,1915.4,1915.3,3.69576412]
[1688280205458,2.809,1915.4,1915.3,0.88076412]
[1688280209353,3.22625208,1915.4,1915.3,0.88076412]
[1688280212167,0.41725208,1915.4,1915.3,0.88076412]
[1688280214570,0.41725208,1915.4,1915.3,1.2898604]
[1688280222694,0.41725208,1915.4,1915.3,4.1108604]
[1688280232185,0.70396843,1915.4,1915.3,3.54337628]
[1688280232394,0.70396843,1915.4,1915.3,0.72237628]
[1688280238188,0.41725208,1915.4,1915.3,0.72237628]
[1688280240399,0.70396843,1915.4,1915.3,0.72237628]
[1688280241794,0.70396843,1915.4,1915.3,0.31328]
[1688280242196,0.70396843,1915.4,1915.3,3.12628]
[1688280243496,0.41725208,1915.4,1915.3,3.12628]
[1688280268718,0.70396843,1915.4,1915.3,3.12628]
[1688280270129,0.66872055,1915.4,1915.3,3.12628]
[1688280272934,0.66872055,1915.4,1915.3,3.10868739]
[1688280273333,0.3820042,1915.4,1915.3,3.10868739]
[1688280281238,0.66872055,1915.4,1915.3,3.10868739]
[1688280282841,10.86602055,1915.4,1915.3,3.10868739]
[1688280283041,11.80603873,1915.4,1915.3,3.10868739]
[1688280298651,11.51932238,1915.4,1915.3,3.10868739]
[1688280299647,11.80603873,1915.4,1915.3,3.10868739]
[1688280308343,11.51932238,1915.4,1915.3,3.10868739]
[1688280309652,11.80603873,1915.4,1915.3,3.10868739]
[1688280313048,11.51932238,1915.4,1915.3,3.10868739]
[1688280315852,11.80603873,1915.4,1915.3,3.10868739]
[1688280335863,11.80603873,1915.4,1915.3,6.31648739]
[1688280340873,11.51932238,1915.4,1915.3,6.31648739]
[1688280341165,11.80603873,1915.4,1915.3,6.31648739]
[1688280348672,11.51932238,1915.4,1915.3,6.31648739]
[1688280350772,11.80603873,1915.4,1915.3,6.31648739]
[1688280362687,12.11930873,1915.4,1915.3,3.50348739]
[1688280362892,14.83428201,1915.4,1915.2,4.03217992]
[1688280363087,0.94001818,1915.3,1915.2,4.03217992]
[1688280363289,1.8207923,1915.3,1915.2,4.03217992]
[1688280367297,5.0285923,1915.3,1915.2,3.56226992]
[1688280368894,5.0285923,1915.3,1915.2,3.13412805]
[1688280371000,16.5065923,1915.3,1914.9,0.93992]
[1688280371304,2.809,1915.0,1914.8,0.78339]
[1688280371600,4.47935047,1914.9,1914.8,0.42010163]
[1688280371797,4.47935047,1914.9,1914.7,1.04461]
[1688280371798,5.41936865,1914.9,1914.7,1.04461]
[1688280371993,15.71206865,1914.9,1914.7,1.04461]
[1688280372193,4.07138818,1914.8,1914.7,1.04461]
[1688280372596,3.13137,1914.8,1914.7,1.04461]
[1688280374401,3.13137,1914.8,1914.7,1.21259385]
[1688280374800,3.13137,1914.8,1914.7,1.62062013]
[1688280375797,3.13137,1914.8,1914.7,0.57601013]
[1688280375999,3.13137,1914.8,1914.7,0.16798385]
[1688280376406,3.13137,1914.8,1914.6,0.31339]
[1688280376603,6.0168,1914.7,1914.6,0.31339]
[1688280376801,7.18439047,1914.7,1914.6,0.31339]
[1688280382503,12.14669047,1914.7,1914.6,0.31339]
[1688280383102,17.30129047,1914.7,1914.6,0.31339]
[1688280389313,17.30129047,1914.7,1914.6,0.48357203]
[1688280393209,17.30129047,1914.7,1914.5,0.42385892]
[1688280393409,3.1314,1914.6,1914.3,0.78353]
[1688280393720,3.12243,1914.4,1914.3,0.78353]
[1688280395428,3.12243,1914.4,1914.3,1.20771797]
[1688280400826,3.12243,1914.4,1914.3,1.49725631]
[1688280414642,7.90953,1914.4,1914.3,1.49725631]
[1688280416641,13.19743,1914.4,1914.3,1.49725631]
[1688280438262,14.13698683,1914.4,1914.3,1.49725631]
[1688280441146,13.19743,1914.4,1914.3,1.49725631]
[1688280441352,14.13680518,1914.4,1914.3,1.49725631]
[1688280443873,13.19743,1914.4,1914.3,1.49725631]
[1688280444057,14.13682473,1914.4,1914.3,1.49725631]
[1688280444458,14.13681896,1914.4,1914.3,1.49725631]
[1688280446159,13.19743,1914.4,1914.3,1.49725631]
[1688280446462,14.1368179,1914.4,1914.3,1.49725631]
[1688280452069,14.1368179,1914.4,1914.3,1.07306834]
[1688280452869,2.809,1914.4,1914.3,1.07306834]
[1688280453071,0.32125556,1914.5,1914.3,3.88806834]
[1688280453569,0.32125556,1914.5,1914.4,0.56748412]
[1688280453769,0.32125556,1914.5,1914.4,0.88091412]
[1688280453974,0.32125556,1914.5,1914.4,1.18853428]
[1688280457268,0.60797191,1914.5,1914.4,0.30762016]
[1688280457472,3.41697191,1914.5,1914.4,0.30762016]
[1688280457672,3.41697191,1914.5,1914.3,0.78353]
[1688280457970,16.81297191,1914.5,1914.4,0.30563778]
[1688280458165,17.75241777,1914.5,1914.3,0.78353]
[1688280458466,1.25287586,1914.4,1914.3,0.78353]
[1688280458877,1.82035998,1914.4,1914.3,0.78353]
[1688280464175,0.88091412,1914.4,1914.3,1.09006789]
[1688280473372,0.31343,1914.4,1914.3,1.09006789]
[1688280475398,0.60014635,1914.4,1914.3,1.09006789]
[1688280483102,0.31343,1914.4,1914.3,3.90306789]
[1688280484297,3.41614635,1914.4,1914.3,1.09006789]
[1688280485194,13.20654635,1914.4,1914.3,1.09006789]
[1688280492103,10.39054635,1914.4,1914.3,1.09006789]
[1688280498909,10.10383,1914.4,1914.3,1.09006789]
[1688280499207,10.39054635,1914.4,1914.3,1.09006789]
[1688280499403,3.60742556,1914.5,1914.3,1.09006789]
[1688280499604,0.79142556,1914.5,1914.4,3.77528412]
[1688280499906,0.79142556,1914.5,1914.4,4.4021394]
[1688280503509,0.00783556,1914.5,1914.4,7.2231394]
[1688280508607,0.60796191,1914.5,1914.4,6.65565528]
[1688280508815,0.60796191,1914.5,1914.4,3.83465528]
[1688280510409,0.60796191,1914.5,1914.4,4.24508866]
[1688280513920,0.32124556,1914.5,1914.4,4.24508866]
[1688280517920,0.00783556,1914.5,1914.4,7.06608866]
[1688280519909,0.32124556,1914.5,1914.4,7.06608866]
[1688280520115,0.60796191,1914.5,1914.4,7.06608866]
[1688280520315,0.60796191,1914.5,1914.4,4.24508866]
[1688280520717,10.82806191,1914.5,1914.4,4.24508866]
[1688280522122,10.82806191,1914.5,1914.4,7.06608866]
[1688280530328,10.81226853,1914.5,1914.4,7.06608866]
[1688280532119,10.81226853,1914.5,1914.4,4.24508866]
[1688280532932,10.81226853,1914.5,1914.4,4.23720601]
[1688280535137,10.52555218,1914.5,1914.4,4.23720601]
[1688280537837,10.81226853,1914.5,1914.4,4.23720601]
[1688280542138,10.81226853,1914.5,1914.4,7.05020601]
[1688280543442,10.52555218,1914.5,1914.4,7.05020601]
[1688280550044,10.81226853,1914.5,1914.4,7.05020601]
[1688280550336,13.73226853,1914.5,1914.4,1.03728866]
[1688280551141,0.31336,1914.9,1914.5,3.19971635]
[1688280551342,0.78339,1915.0,1914.8,6.0228]
[1688280551543,5.2578,1914.9,1914.8,7.09289635]
[1688280558844,10.3095,1914.9,1914.8,7.09289635]
[1688280566344,5.2578,1914.9,1914.8,7.09289635]
[1688280566747,10.4565,1914.9,1914.8,7.09289635]
[1688280569752,10.76985,1914.9,1914.8,7.09289635]
[1688280569950,11.05656635,1914.9,1914.8,7.09289635]
[1688280570359,10.76985,1914.9,1914.8,7.09289635]
[1688280571147,10.4565,1914.9,1914.8,7.09289635]
[1688280572658,10.76985,1914.9,1914.8,7.09289635]
[1688280573363,10.76985,1914.9,1914.8,3.88509635]
[1688280573660,10.76985,1914.9,1914.8,7.09289635]
[1688280575753,11.05656635,1914.9,1914.8,7.09289635]
[1688280576154,11.05656635,1914.9,1914.8,6.80618]
[1688280578159,11.05656635,1914.9,1914.8,7.09289635]
[1688280579954,10.76985,1914.9,1914.8,7.09289635]
[1688280581264,11.05656635,1914.9,1914.8,7.09289635]
[1688280582456,11.05656635,1914.9,1914.8,6.80618]
[1688280583760,11.05656635,1914.9,1914.8,7.09289635]
[1688280586962,10.76985,1914.9,1914.8,7.09289635]
[1688280588572,11.05656635,1914.9,1914.8,7.09289635]
[1688280590359,10.76985,1914.9,1914.8,7.09289635]
[1688280591359,11.05656635,1914.9,1914.8,7.09289635]
[1688280591754,11.05656635,1914.9,1914.8,6.80618]
[1688280592158,13.87456635,1914.9,1914.8,0.78338]
[1688280592554,18.02117899,1914.9,1914.8,0.78338]
[1688280605277,18.02117899,1914.9,1914.7,0.73012171]
[1688280605577,4.06818264,1914.8,1914.7,0.41676171]
[1688280605773,4.06818264,1914.8,1914.5,1.04456]
[1688280605973,4.06818264,1914.8,1914.5,1.46724172]
[1688280605974,3.1224,1914.6,1914.5,1.46724172]
[1688280606173,3.40911635,1914.6,1914.5,1.46724172]
[1688280613784,3.40911635,1914.6,1914.5,2.06227829]
[1688280618085,3.40911635,1914.6,1914.5,1.01771829]
[1688280618394,4.45157853,1914.6,1914.5,1.01771829]
[1688280619890,3.51311635,1914.6,1914.5,1.01771829]
[1688280620785,3.51311635,1914.6,1914.3,0.32127515]
[1688280620786,6.33411635,1914.6,1914.3,0.32127515]
[1688280620991,3.12943,1914.4,1914.3,0.32127515]
[1688280621179,3.41614635,1914.4,1914.3,0.32127515]
[1688280622687,3.41614635,1914.4,1914.3,0.00783515]
[1688280623293,3.41614635,1914.4,1914.3,0.7414303]
[1688280623501,3.41614635,1914.4,1914.3,0.32128515]
[1688280628394,3.41614635,1914.4,1914.3,0.8940979]
[1688280640901,3.41614635,1914.4,1914.3,0.50598921]
[1688280655821,4.35478839,1914.4,1914.3,0.50598921]
[1688280656013,3.41614635,1914.4,1914.3,0.50598921]
[1688280657310,0.104,1914.3,1913.9,0.94051]
[1688280657516,2.818,1914.0,1913.9,0.94051]
[1688280657720,3.41821635,1914.0,1913.9,0.94051]
[1688280658420,8.58161635,1914.0,1913.9,0.94051]
[1688280658625,8.58161635,1914.0,1913.9,1.48861514]
[1688280664322,17.24161635,1914.0,1913.9,1.514e-05]
[1688280664520,17.24161635,1914.0,1913.2,2.73972211]
[1688280664521,21.10102263,1914.0,1913.3,0.78399]
[1688280664729,3.2078,1913.6,1913.4,0.78398]
[1688280664924,3.41629635,1913.5,1913.3,0.78399]
[1688280665127,2.819,1913.4,1913.3,0.78399]
[1688280665426,3.1326,1913.4,1913.3,0.78399]
[1688280666326,3.1326,1913.4,1913.3,0.4267287]
[1688280666623,3.1326,1913.4,1913.2,0.3136]
[1688280666624,1.3931,1913.4,1913.2,0.3136]
[1688280666822,0.3136,1913.4,1913.3,0.31362]
[1688280667023,3.41631635,1913.4,1913.3,0.31362]
[1688280668120,8.53141635,1913.4,1913.3,0.31362]
[1688280672024,8.53141635,1913.4,1913.3,0.32989507]
[1688280673816,8.53141635,1913.4,1913.3,0.32988507]
[1688280677430,8.2447,1913.4,1913.3,0.32988507]
[1688280677629,8.2447,1913.4,1913.3,0.61660142]
[1688280677930,8.2447,1913.4,1913.3,0.72060142]
[1688280677931,3.1296,1913.4,1913.3,0.72060142]
[1688280680623,3.41631635,1913.4,1913.3,0.72060142]
[1688280682636,0.31357,1913.7,1913.4,0.104]
[1688280682840,0.94067,1913.8,1913.6,3.2078]
[1688280682841,3.75867,1913.8,1913.6,3.2078]
[1688280683137,2.818,1913.8,1913.7,0.43000531]